[Event "14. Deizisauer Herbstopen 2019"]
[Site "Deizisau"]
[Date "2019.10.28"]
[Round "6.1"]
[White "Gheng, Josef"]
[Black "Dgebuadze, Alexandre"]
[Result "0-1"]
[ECO "A04"]
[WhiteElo "2190"]
[BlackElo "2472"]
[Annotator "RC"]
[PlyCount "98"]
[EventDate "2019.10.25"]
[EventType "swiss"]
[EventCountry "GER"]
[SourceTitle "playchess.com"]
[Source "ChessBase"]
[SourceQuality "1"]
[TimeControl "5400+30"]

1. Nf3 {[%emt 0:00:00]} d6 {[%emt 0:01:45]} 2. c4 {[%emt 0:00:36]} g6 {[%emt 0:00:19]} 3. g3 {[%emt 0:00:08]} Bg7 {[%emt 0:00:20]} 4. Bg2 {[%emt 0:00:06]} e5 {[%emt 0:01:43]} 5. Nc3 {[%emt 0:03:04]} Ne7 {[%emt 0:07:21]} 6. d4 {[%emt 0:03:47]} Nd7 {[%emt 0:00:54]} 7. O-O {[%emt 0:03:01]} O-O {[%emt 0:00:10]} 8. dxe5 {[%emt 0:01:18]} dxe5 {[%emt 0:00:33]} 9. Bg5 {[%emt 0:02:19]} h6 {[%emt 0:01:09]} 10. Bd2 {[%emt 0:00:08]} c6 {[%emt 0:07:30]} 11. Ne4 {[%emt 0:04:03]} f5 {[%emt 0:04:34]} 12. Nd6 {[%emt 0:01:49]} e4 {[%emt 0:02:35]} 13. Ne1 {[%emt 0:00:05]} Kh7 {[%emt 0:15:10]} 14. Qc2 {[%emt 0:06:19]} Nc5 {[%emt 0:04:07]} 15. Nxc8 {[%emt 0:01:10]} Nxc8 {[%emt 0:03:00]} 16. Rd1 {[%emt 0:00:31]} Qe7 {[%emt 0:00:41]} 17. Bb4 {[%emt 0:01:45]} a5 {[%emt 0:04:54]} 18. Ba3 {[%emt 0:02:45]} b6 {[%emt 0:01:45]} 19. Qc1 {[%emt 0:07:26]} Nd6 {[%emt 0:00:50]} 20. b3 {[%emt 0:00:12]} a4 {[%emt 0:05:53]} 21. b4 {[%emt 0:00:41]} Ncb7 {[%emt 0:02:28]} 22. f3 {[%emt 0:03:27]} Rad8 {[%emt 0:06:54]} 23. fxe4 {[%emt 0:06:36]} Nxe4 {[%emt 0:00:32]} 24. Rd3 {[%emt 0:02:34]} Nbd6 {[%emt 0:02:41]} 25. Qc2 {[%emt 0:03:39]} Qe6 {[%emt 0:02:32]} 26. Qxa4 {[%emt 0:02:37]} Nxc4 {[%emt 0:00:33]} 27. Bc1 {[%emt 0:00:55]} Nc3 {[%emt 0:02:40]} 28. Qc2 {[%emt 0:02:27]} Nxe2+ {[%emt 0:01:54]} 29. Kh1 {[%emt 0:00:08]} Nxc1 {[%emt 0:00:29]} 30. Qxc1 {[%emt 0:00:15]} b5 {[%emt 0:01:31]} 31. Qc2 {[%emt 0:03:15]} Rfe8 {[%emt 0:01:54]} 32. Rxd8 {[%emt 0:00:59]} Rxd8 {[%emt 0:00:06]} 33. Nf3 {[%emt 0:01:53]} Qe7 {[%emt 0:00:29]} 34. Nh4 {[%emt 0:02:25]} Ne3 {[%emt 0:03:37]} 35. Qe2 {[%emt 0:00:27]} Qa7 {[%emt 0:02:55]} 36. Rc1 {[%emt 0:00:49]} Qa3 {[%emt 0:02:05]} 37. Qe1 {[%emt 0:00:35]} Nxg2 {[%emt 0:00:56]} 38. Nxg2 {[%emt 0:00:12]} Qxa2 {[%emt 0:00:27]} 39. Rxc6 {[%emt 0:00:34]} Rd2 {[%emt 0:01:10]} 40. Rc7 {[%emt 0:01:15]} Qd5 {[%emt 0:00:47]} 41. Rxg7+ {[%emt 0:00:34]} Kxg7 {[%emt 0:00:08]} 42. Qe7+ {[%emt 0:00:04]} Qf7 {[%emt 0:00:08]} 43. Qe5+ {[%emt 0:00:08]} Kh7 {[%emt 0:00:08]} 44. Nf4 {[%emt 0:00:46]} g5 {[%emt 0:02:37]} 45. Ne2 {[%emt 0:02:36]} Qd5+ {[%emt 0:00:12]} 46. Qxd5 {[%emt 0:00:05]} Rxd5 {[%emt 0:00:03]} 47. Nc3 {[%emt 0:00:06]} Re5 {[%emt 0:00:06]} 48. Kg2 {[%emt 0:00:06]} Kg6 {[%emt 0:00:08]} 49. Kf3 {[%emt 0:00:21]} Kf7 {[%emt 0:00:36]} 0-1

[Event "14. Deizisauer Herbstopen 2019"]
[Site "Deizisau"]
[Date "2019.10.28"]
[Round "6.3"]
[White "Hoffmann, Achim Gunter"]
[Black "Frolik, Erhard"]
[Result "1/2-1/2"]
[ECO "B48"]
[WhiteElo "2125"]
[BlackElo "2317"]
[Annotator "NA RC"]
[PlyCount "185"]
[EventDate "2019.10.25"]
[EventType "swiss"]
[EventCountry "GER"]
[SourceTitle "playchess.com"]
[Source "ChessBase"]
[SourceQuality "1"]
[TimeControl "5400+30"]

1. e4 {[%emt 0:00:00]} c5 {[%emt 0:00:00]} 2. Nf3 {[%emt 0:00:00]} e6 {[%emt 0:00:00]} 3. d4 {[%emt 0:00:00]} cxd4 {[%emt 0:00:00]} 4. Nxd4 {[%emt 0:00:00]} Nc6 {[%emt 0:00:00]} 5. Nc3 {[%emt 0:00:12]} Qc7 {[%emt 0:00:08]} 6. Be3 {[%emt 0:02:38]} a6 {[%emt 0:00:18]} 7. Bd3 {[%emt 0:02:01]} b5 {[%emt 0:01:00]} 8. O-O {[%emt 0:02:11]} Bb7 {[%emt 0:00:23]} 9. a3 {[%emt 0:10:28]} Nf6 {[%emt 0:03:53]} 10. Kh1 {[%emt 0:05:02]} Be7 {[%emt 0:06:14]} 11. f4 {[%emt 0:01:00]} d6 {[%emt 0:01:22]} 12. Qe1 {[%emt 0:09:22]} O-O {[%emt 0:00:54]} 13. Rf3 {[%emt 0:02:10] B48: Sicilian: Taimanov: 5 Nc3 Qc7 6 Be3 a6 without Be2} Ng4 $146 {[%emt 0:10:12]} ({Predecessor:} 13... Nxd4 14. Bxd4 e5 15. Be3 exf4 16. Bxf4 Nd7 17. Qg3 Ne5 18. Bxe5 dxe5 19. Raf1 Rad8 20. Qh3 Rd6 {½-½ (31) Formanek,M (2078)-Vavra,P (2390) Moravia 2003}) 14. Nxc6 {[%emt 0:11:12]} Bxc6 {[%emt 0:00:13]} 15. Bd4 {[%emt 0:01:10]} e5 {[%emt 0:08:42]} 16. Bg1 {[%emt 0:04:08]} exf4 {[%emt 0:01:24]} 17. Rxf4 {[%emt 0:01:43]} Ne5 {[%emt 0:00:27]} 18. Qg3 {[%emt 0:02:39]} Qb7 {[%emt 0:07:55]} 19. Bd4 {[%emt 0:03:21]} Rae8 {[%emt 0:07:07]} 20. Rf5 {[%emt 0:02:21]} Bd8 {[%emt 0:04:37]} 21. Raf1 {[%emt 0:07:39]} Bb6 {[%emt 0:07:28]} 22. Bxb6 {[%emt 0:06:04]} Qxb6 {[%emt 0:02:14]} 23. Rg5 {[%emt 0:01:35]} g6 {[%emt 0:00:51]} 24. Rgf5 {[%emt 0:01:47]} b4 {[%emt 0:07:15]} 25. axb4 {[%emt 0:01:30]} Qxb4 {[%emt 0:00:08]} 26. Bxa6 {[%emt 0:01:25]} Qxb2 {[%emt 0:01:05]} 27. R5f2 {[%emt 0:02:19]} Qb6 {[%emt 0:01:55]} 28. Bd3 {[%emt 0:01:03]} Qc5 {[%emt 0:01:44]} 29. Ne2 $17 {[%emt 0:01:08]} Ra8 {[%emt 0:02:48]} 30. Nf4 {[%emt 0:00:39]} Nd7 {[%emt 0:04:03]} 31. h4 {[%emt 0:00:54]} Qe5 {[%emt 0:00:56]} 32. Rf3 {[%emt 0:04:49]} Ra1 {[%emt 0:00:56]} 33. Rxa1 {[%emt 0:02:51]} Qxa1+ {[%emt 0:00:03]} 34. Rf1 {[%emt 0:00:49]} Qe5 {[%emt 0:00:18]} 35. Ne2 {[%emt 0:02:47]} Re8 {[%emt 0:01:19]} 36. Bc4 {[%emt 0:01:53]} Re7 {[%emt 0:02:46]} 37. Qxe5 {[%emt 0:01:09]} Nxe5 {[%emt 0:00:11]} 38. Bd5 {[%emt 0:00:14]} Bxd5 {[%emt 0:02:04]} 39. exd5 {[%emt 0:00:02]} Ng4 {[%emt 0:01:26]} 40. Nd4 {[%emt 0:01:16]} Ne3 {[%emt 0:02:29]} 41. Ra1 {[%emt 0:04:20]} Nxd5 {[%emt 0:01:21]} 42. Ra8+ {[%emt 0:00:44]} Kg7 {[%emt 0:00:09]} 43. Rd8 {[%emt 0:00:04]} Re4 {[%emt 0:01:39]} 44. Nf3 {[%emt 0:00:01]} Ne3 {[%emt 0:01:14]} 45. Rxd6 {[%emt 0:00:35]} Nxc2 {[%emt 0:02:31]} 46. Rd7 {[%emt 0:00:49]} h6 {[%emt 0:00:28]} 47. g3 {[%emt 0:01:00]} Ne3 {[%emt 0:02:45]} 48. Rd4 {[%emt 0:00:41]} Re7 {[%emt 0:00:32]} 49. Kg1 {[%emt 0:00:22]} Nf5 {[%emt 0:00:28]} 50. Rd5 {[%emt 0:02:00]} Nxg3 {[%emt 0:00:17]} 51. Kg2 {[%emt 0:00:05]} Nh5 {[%emt 0:00:26]} 52. Rd4 {[%emt 0:00:09]} Nf6 {[%emt 0:01:05]} 53. Ra4 {[%emt 0:00:15]} Re4 {[%emt 0:00:53]} 54. Ra5 {[%emt 0:00:08]} Rg4+ {[%emt 0:00:45]} 55. Kh3 {[%emt 0:00:01]} Re4 {[%emt 0:00:43]} 56. Ra3 {[%emt 0:00:33]} Nh5 {[%emt 0:00:34]} 57. Rb3 {[%emt 0:00:28]} Kf6 {[%emt 0:00:40]} 58. Ra3 {[%emt 0:00:12]} Nf4+ {[%emt 0:00:22]} 59. Kg3 {[%emt 0:00:16]} Ne6 {[%emt 0:00:36]} 60. Rd3 {[%emt 0:00:10]} g5 {[%emt 0:00:19]} 61. hxg5+ {[%emt 0:00:19]} hxg5 {[%emt 0:00:17]} 62. Rd7 {[%emt 0:00:20]} Ra4 {[%emt 0:01:04]} 63. Rb7 {[%emt 0:00:09]} Re4 {[%emt 0:00:37]} 64. Ra7 {[%emt 0:00:08]} Kg6 {[%emt 0:00:13]} 65. Ra8 {[%emt 0:00:32]} f6 {[%emt 0:00:24]} 66. Ra6 {[%emt 0:00:22]} Nd4 {[%emt 0:01:00]} 67. Nh2 {[%emt 0:01:16]} Kf5 {[%emt 0:00:52]} 68. Ra5+ {[%emt 0:00:14]} Re5 {[%emt 0:00:02]} 69. Ra4 {[%emt 0:00:08]} Re3+ {[%emt 0:00:55]} 70. Kg2 {[%emt 0:00:20]} Rd3 {[%emt 0:00:48]} 71. Ra6 {[%emt 0:00:35]} Ne6 {[%emt 0:01:01]} 72. Nf3 {[%emt 0:00:45]} Nf4+ {[%emt 0:00:06]} 73. Kf2 {[%emt 0:01:00]} Ng6 {[%emt 0:01:21]} 74. Ra2 {[%emt 0:00:34]} g4 {[%emt 0:00:23]} 75. Ne1 {[%emt 0:00:02]} Rb3 {[%emt 0:00:28]} 76. Nc2 {[%emt 0:00:24]} Rh3 {[%emt 0:00:20]} 77. Ne3+ {[%emt 0:00:25]} Kg5 {[%emt 0:00:38]} 78. Ra5+ {[%emt 0:00:20]} Ne5 {[%emt 0:00:10]} 79. Rb5 {[%emt 0:00:15]} Rh2+ {[%emt 0:00:33]} 80. Ng2 {[%emt 0:00:25]} Rh8 {[%emt 0:00:24]} 81. Ra5 {[%emt 0:00:22]} Rb8 {[%emt 0:00:34]} 82. Ne3 {[%emt 0:01:20]} Rb4 {[%emt 0:00:37]} 83. Rd5 {[%emt 0:01:03]} Kf4 {[%emt 0:00:32]} 84. Ng2+ {[%emt 0:00:34]} Ke4 {[%emt 0:00:08]} 85. Rd2 {[%emt 0:00:13]} f5 {[%emt 0:00:42]} 86. Re2+ {[%emt 0:00:15]} Kd5 {[%emt 0:00:23]} 87. Ne1 {[%emt 0:00:46]} f4 {[%emt 0:00:19]} 88. Rxe5+ {[%emt 0:00:14]} Kxe5 {[%emt 0:00:31]} 89. Nd3+ {[%emt 0:00:01]} Ke4 {[%emt 0:00:18]} 90. Nxb4 {[%emt 0:00:03]} g3+ {[%emt 0:00:12]} 91. Kg2 {[%emt 0:00:30]} f3+ {[%emt 0:00:10]} 92. Kxg3 {[%emt 0:00:12]} f2 {[%emt 0:00:09]} 93. Kxf2 {[%emt 0:00:06]} 1/2-1/2

[Event "14. Deizisauer Herbstopen 2019"]
[Site "Deizisau"]
[Date "2019.10.28"]
[Round "6.4"]
[White "Valkova, Anzhelika"]
[Black "Gustain, Marc"]
[Result "0-1"]
[ECO "D20"]
[WhiteElo "1947"]
[BlackElo "2179"]
[Annotator "NA"]
[PlyCount "86"]
[EventDate "2019.10.25"]
[EventType "swiss"]
[EventCountry "GER"]
[SourceTitle "playchess.com"]
[Source "ChessBase"]
[SourceQuality "1"]
[TimeControl "5400+30"]

{[%evp 8,66,36,41,51,43,25,9,13,0,0,0,0,0,0,0,0,-26,-19,32767,-47,-61,-46,-50,-55,-68,32767,32767,32767,-215,32767,-222,-109,32767,-182,-183,32767,32767,32767,32767,-236,32767,32767,-182,32767,32767,-225,-240,-264,-233,-240,-265,32767,-332,32767,-289,32767,-234,32767,32767,-220]} 1. d4 {[%emt 0:00:00]} d5 {[%emt 0:00:00]} 2. c4 {[%emt 0:00:00]} dxc4 {[%emt 0:00:00]} 3. e3 {[%emt 0:00:00]} e5 {[%emt 0:00:03]} 4. Bxc4 {[%emt 0:00:06]} exd4 {[%emt 0:00:16]} 5. exd4 {[%emt 0:00:04]} Bd6 {[%emt 0:00:53]} 6. Nf3 {[%emt 0:00:20]} Nf6 {[%emt 0:00:11]} 7. O-O {[%emt 0:00:25]} O-O {[%emt 0:00:10]} 8. Nc3 {[%emt 0:01:10]} Nc6 {[%emt 0:00:41]} 9. h3 {[%emt 0:02:03]} h6 {[%emt 0:00:20]} 10. a3 {[%emt 0:02:46]} Bf5 {[%emt 0:00:41] D20: Queen's Gambit Accepted: 3 e3 and 3 e4} 11. b4 {[%emt 0:05:17]} (11. Re1 a6 12. Be3 Qd7 13. d5 Ne5 14. Bf1 Nxf3+ 15. Qxf3 Rfe8 16. Bd4 Rxe1 17. Rxe1 Re8 18. Rxe8+ Nxe8 19. g4 {½-½ (33) Cori Tello,J (2659)-Hungaski,R (2510) Montevideo 2018}) 11... a6 {[%emt 0:01:39]} 12. Bb2 {[%emt 0:01:04]} Qd7 {[%emt 0:02:50]} 13. Qd2 $146 {[%emt 0:05:33] [#]} ({Predecessor:} 13. d5 Ne5 14. Nxe5 Bxe5 15. f4 Bd6 16. g4 Bh7 17. Qf3 Rfe8 18. f5 {½-½ (35) Ristic,N (2266)-Kizov,A (2427) Bar 2006}) 13... Rad8 {[%emt 0:04:19]} (13... Bxh3 $1 $17 {[%mdl 512]} 14. Ne2 {[#]} (14. gxh3 Qxh3) 14... Qg4 $1 {[%mdl 512]}) 14. Rfe1 {[%emt 0:03:24]} Bxh3 {[%emt 0:07:01]} 15. Ne4 $1 {[%emt 0:20:08]} Nxe4 {[%emt 0:06:03]} 16. Rxe4 {[%emt 0:00:04]} Bg4 {[%emt 0:03:17]} 17. d5 {[%emt 0:02:24]} Bxf3 {[%emt 0:10:39]} 18. gxf3 {[%emt 0:00:49]} Qh3 {[%emt 0:03:26]} 19. f4 {[%emt 0:04:36]} Ne7 {[%emt 0:02:50]} (19... Qg4+ $19 20. Kf1 Ne7) 20. Re3 {[%emt 0:04:15]} Bxf4 {[%emt 0:04:10]} 21. Rxh3 {[%emt 0:00:09]} Bxd2 {[%emt 0:00:08]} 22. Rg3 {[%emt 0:00:59]} Nf5 {[%emt 0:02:19]} 23. Rg2 {[%emt 0:02:22]} g5 {[%emt 0:04:53]} 24. Be5 {[%emt 0:03:55]} Nd6 {[%emt 0:01:07]} 25. Bd3 {[%emt 0:02:35]} f6 {[%emt 0:02:58]} 26. Bd4 {[%emt 0:01:58]} Rde8 {[%emt 0:04:08]} 27. Rd1 {[%emt 0:00:42]} Bf4 {[%emt 0:01:04]} 28. Kf1 {[%emt 0:02:55]} Kg7 {[%emt 0:00:44]} 29. f3 {[%emt 0:00:26]} Nb5 {[%emt 0:04:58]} 30. Bc5 {[%emt 0:01:56]} Rf7 {[%emt 0:02:21]} 31. Bf5 {[%emt 0:04:47]} Bd6 {[%emt 0:02:45]} 32. Be6 {[%emt 0:01:08]} Rfe7 {[%emt 0:00:26]} 33. Rd3 {[%emt 0:02:04]} b6 $19 {[%emt 0:01:46]} 34. Bxd6 {[%emt 0:05:18]} Nxd6 {[%emt 0:02:13]} 35. f4 {[%emt 0:03:31]} Rd8 {[%emt 0:06:41]} 36. f5 {[%emt 0:01:10]} Ra8 {[%emt 0:02:55]} 37. a4 {[%emt 0:00:28]} a5 {[%emt 0:00:16]} 38. b5 {[%emt 0:00:31]} Rd8 {[%emt 0:00:36]} 39. Rd4 {[%emt 0:04:48]} h5 {[%emt 0:00:28]} 40. Rc2 {[%emt 0:02:57]} Kh6 {[%emt 0:00:21]} 41. Kg2 {[%emt 0:01:09]} g4 {[%emt 0:00:25]} 42. Kg3 {[%emt 0:00:22]} Kg5 {[%emt 0:00:10]} 43. Rh2 {[%emt 0:00:16]} Rxe6 {[%emt 0:01:58]} 0-1

[Event "14. Deizisauer Herbstopen 2019"]
[Site "Deizisau"]
[Date "2019.10.28"]
[Round "6.5"]
[White "Gheng, Dominik"]
[Black "Lehmann, Stefan"]
[Result "1-0"]
[ECO "C77"]
[WhiteElo "2068"]
[BlackElo "1999"]
[Annotator "NA"]
[PlyCount "63"]
[EventDate "2019.10.25"]
[EventType "swiss"]
[EventCountry "GER"]
[SourceTitle "playchess.com"]
[Source "ChessBase"]
[SourceQuality "1"]
[TimeControl "5400+30"]

{[%evp 8,59,18,16,22,32767,32767,32767,32767,32767,25,0,20,8,32767,9,16,15,4,7,4,-8,0,0,0,32767,-1,-11,-22,32767,16,32767,27,0,99,32767,141,129,103,32767,32767,32767,32767,32767,32767,32767,28,44,48,32767,32767,32767,36,18]} 1. e4 {[%emt 0:10:32]} e5 {[%emt 0:00:00]} 2. Nf3 {[%emt 0:00:14]} Nc6 {[%emt 0:00:00]} 3. Bb5 {[%emt 0:00:19]} a6 4. Ba4 {[%emt 0:00:27]} Nf6 {[%emt 0:00:00]} 5. d3 {[%emt 0:00:24]} Bc5 {[%emt 0:00:00]} 6. O-O {[%emt 0:01:11]} d6 {[%emt 0:00:02]} 7. c3 {[%emt 0:00:45]} O-O {[%emt 0:00:13]} 8. h3 {[%emt 0:01:50] C78: Ruy Lopez: Archangelsk and Möller Defences} Ba7 {[%emt 0:00:05]} 9. Re1 {[%emt 0:00:26]} Ne7 {[%emt 0:00:08]} 10. Nbd2 {[%emt 0:02:40]} Ng6 {[%emt 0:00:08]} 11. Nf1 {[%emt 0:00:15]} c6 {[%emt 0:00:03]} 12. Ng3 {[%emt 0:02:16]} d5 {[%emt 0:00:58]} 13. exd5 {[%emt 0:12:30]} Nxd5 {[%emt 0:00:28]} 14. d4 {[%emt 0:03:45]} exd4 {[%emt 0:00:16]} 15. Nxd4 {[%emt 0:00:23] [#]} Qc7 $146 {[%emt 0:05:24]} ({Predecessor:} 15... Be6) 16. Bc2 {[%emt 0:05:27]} Bd7 {[%emt 0:04:15]} 17. c4 {[%emt 0:23:48]} Ndf4 {[%emt 0:16:03]} 18. Be3 {[%emt 0:00:48] [#]} c5 {[%emt 0:08:46]} (18... Rad8 $1 $17 19. Bxg6 fxg6) 19. Ndf5 {[%emt 0:04:44]} Rad8 $1 {[%emt 0:05:00]} 20. Qg4 {[%emt 0:03:42]} Bc6 {[%emt 0:06:27]} (20... Ne6 $11) 21. Bxf4 {[%emt 0:09:30]} Qxf4 {[%emt 0:00:05]} 22. Ne7+ {[%emt 0:01:23]} Kh8 {[%emt 0:00:05]} 23. Qxf4 {[%emt 0:00:10]} Nxf4 {[%emt 0:00:07]} 24. Nxc6 {[%emt 0:00:02]} bxc6 {[%emt 0:00:06]} 25. Rad1 {[%emt 0:00:19]} Ne6 {[%emt 0:00:49]} 26. Be4 {[%emt 0:01:55]} Nd4 {[%emt 0:05:55]} 27. Nf5 {[%emt 0:00:10]} Rc8 {[%emt 0:06:44]} 28. Rd3 {[%emt 0:04:27]} Rb8 {[%emt 0:05:09]} 29. Ra3 {[%emt 0:04:18]} Rb6 {[%emt 0:02:24]} 30. Ra5 $11 {[%emt 0:02:49]} g6 {[%emt 0:07:03]} 31. Nxd4 {[%emt 0:01:25]} cxd4 {[%emt 0:00:20]} 32. b3 1-0

[Event "14. Deizisauer Herbstopen 2019"]
[Site "Deizisau"]
[Date "2019.10.28"]
[Round "6.6"]
[White "Meier, Marlon"]
[Black "Reimche, Vadim"]
[Result "0-1"]
[ECO "B22"]
[WhiteElo "1929"]
[BlackElo "2080"]
[Annotator "NA RC"]
[PlyCount "128"]
[EventDate "2019.10.25"]
[EventType "swiss"]
[EventCountry "GER"]
[SourceTitle "playchess.com"]
[Source "ChessBase"]
[SourceQuality "1"]
[TimeControl "5400+30"]

1. e4 {[%emt 0:00:00]} c5 {[%emt 0:09:09]} 2. c3 {[%emt 0:00:00]} Nf6 {[%emt 0:00:46]} 3. e5 {[%emt 0:00:02]} Nd5 {[%emt 0:00:04]} 4. d4 {[%emt 0:00:13]} cxd4 {[%emt 0:00:06]} 5. cxd4 {[%emt 0:00:10]} Nc6 {[%emt 0:00:21]} 6. Nf3 {[%emt 0:00:10]} d6 {[%emt 0:00:07]} 7. Bc4 {[%emt 0:00:11]} Nb6 {[%emt 0:00:30]} 8. Bb5 {[%emt 0:00:12]} d5 {[%emt 0:03:49]} 9. h3 {[%emt 0:03:17] B22: Sicilian: 2 c3} Bf5 {[%emt 0:00:47]} 10. Nc3 {[%emt 0:00:45]} e6 {[%emt 0:00:47]} 11. Be3 {[%emt 0:06:29]} Rc8 {[%emt 0:00:46]} 12. Rc1 {[%emt 0:00:56]} Be7 {[%emt 0:00:16]} 13. O-O {[%emt 0:04:42]} O-O {[%emt 0:00:11]} 14. Bxc6 $146 {[%emt 0:02:02]} (14. Ne1 $11 {keeps the balance.}) ({Predecessor:} 14. Be2 a6 15. a3 Na5 16. Nd2 Nac4 17. Nxc4 Nxc4 18. Bxc4 Rxc4 {0-1 (42) Rutkowski,M (2380)-Moranda,W (2533) Ustron 2008}) 14... Rxc6 {[%emt 0:01:59]} 15. Nd2 {[%emt 0:01:16]} Nc4 {[%emt 0:09:24]} 16. Nxc4 {[%emt 0:00:24]} Rxc4 {[%emt 0:00:11]} 17. f4 {[%emt 0:02:39]} Bb4 {[%emt 0:06:21]} 18. g4 {[%emt 0:21:40]} Bxc3 {[%emt 0:00:44]} 19. Rxc3 {[%emt 0:00:53]} Be4 {[%emt 0:04:31]} 20. Bf2 {[%emt 0:02:24]} (20. Rc1 $15) 20... Qa5 {[%emt 0:05:05]} 21. Qb3 {[%emt 0:02:49]} (21. Rxc4 $15 dxc4 22. Qe1) 21... b5 {[%emt 0:04:11]} 22. a3 {[%emt 0:04:14]} Qb6 {[%emt 0:03:52]} 23. Rfc1 {[%emt 0:01:18]} h6 {[%emt 0:04:53]} 24. Qd1 {[%emt 0:03:43]} Rfc8 {[%emt 0:03:10]} 25. Qd2 {[%emt 0:00:10]} R8c6 {[%emt 0:14:02]} 26. b3 {[%emt 0:05:27]} Rxc3 {[%emt 0:00:09]} 27. Rxc3 {[%emt 0:00:05]} b4 {[%emt 0:06:13]} 28. Rxc6 {[%emt 0:02:14]} Qxc6 {[%emt 0:00:06]} 29. axb4 {[%emt 0:00:13]} Qa6 $15 {[%emt 0:00:46]} 30. Be1 {[%emt 0:12:27]} Qa1 {[%emt 0:01:15]} 31. Qe3 {[%emt 0:00:11]} Qb2 {[%emt 0:02:02]} 32. Bf2 {[%emt 0:00:26]} Qb1+ {[%emt 0:03:18]} 33. Be1 {[%emt 0:00:21]} Qc2 {[%emt 0:00:17]} 34. Bf2 {[%emt 0:00:17]} h5 {[%emt 0:02:01]} 35. g5 {[%emt 0:00:50]} h4 {[%emt 0:01:16]} 36. Kh2 {[%emt 0:00:31]} Kh7 {[%emt 0:02:12]} 37. Kg1 {[%emt 0:00:24]} Kg8 {[%emt 0:01:38]} 38. Kh2 {[%emt 0:00:37]} Kf8 {[%emt 0:00:09]} 39. Kg1 {[%emt 0:01:36]} Ke8 {[%emt 0:00:27]} 40. Kh2 {[%emt 0:00:35]} Kd7 {[%emt 0:00:14]} 41. Kg1 {[%emt 0:00:23]} Kc6 {[%emt 0:00:27]} 42. Qe1 {[%emt 0:02:46]} Qxb3 {[%emt 0:02:44]} 43. Qc1+ {[%emt 0:02:10]} Kb7 {[%emt 0:01:14]} 44. b5 {[%emt 0:01:06]} Qxb5 {[%emt 0:00:52]} 45. Be1 {[%emt 0:01:28]} a5 {[%emt 0:03:10]} 46. Qc5 {[%emt 0:00:51]} Qxc5 {[%emt 0:01:22]} 47. dxc5 {[%emt 0:00:03]} a4 {[%emt 0:00:23]} 48. Bxh4 {[%emt 0:00:58]} a3 {[%emt 0:01:07]} 49. Bf2 {[%emt 0:00:10]} a2 {[%emt 0:00:35]} 50. Bd4 {[%emt 0:00:25]} Kc6 {[%emt 0:00:33]} 51. Kf2 {[%emt 0:00:09]} Kb5 {[%emt 0:00:56]} 52. Ke3 {[%emt 0:00:05]} g6 {[%emt 0:00:39]} 53. h4 {[%emt 0:00:16]} Bc2 {[%emt 0:01:04]} 54. Kd2 {[%emt 0:14:38]} Kc4 {[%emt 0:00:00]} 55. Ba1 {[%emt 0:03:25]} Ba4 {[%emt 0:00:08]} 56. Kc1 {[%emt 0:00:21]} d4 {[%emt 0:01:26]} 57. f5 {[%emt 0:00:51]} Kxc5 {[%emt 0:02:43]} 58. fxg6 {[%emt 0:01:03]} fxg6 {[%emt 0:00:03]} 59. h5 {[%emt 0:00:44]} gxh5 {[%emt 0:00:04]} 60. g6 {[%emt 0:00:02]} Be8 {[%emt 0:00:20]} 61. g7 {[%emt 0:00:02]} Bf7 {[%emt 0:00:05]} 62. Kd2 {[%emt 0:00:12]} Kd5 {[%emt 0:01:09]} 63. Kd3 {[%emt 0:00:03]} h4 {[%emt 0:00:46]} 64. Bxd4 {[%emt 0:02:15]} h3 {[%emt 0:00:15]} 0-1

[Event "14. Deizisauer Herbstopen 2019"]
[Site "Deizisau"]
[Date "2019.10.28"]
[Round "6.7"]
[White "Doering, Stefan"]
[Black "Trettin, Ulrich"]
[Result "1-0"]
[ECO "B32"]
[WhiteElo "2025"]
[BlackElo "2031"]
[Annotator "NA RC"]
[PlyCount "79"]
[EventDate "2019.10.25"]
[EventType "swiss"]
[EventCountry "GER"]
[SourceTitle "playchess.com"]
[Source "ChessBase"]
[SourceQuality "1"]
[TimeControl "5400+30"]

{[%evp 8,77,43,48,45,52,52,43,50,14,24,18,17,0,0,0,55,14,26,35,22,32,75,58,55,58,70,32767,52,-26,0,32767,32767,44,58,52,49,0,7,0,0,0,0,32767,0,0,32767,32767,69,32767,32767,32767,32767,32767,32767,104,115,116,32767,32767,32767,32767,32767,32767,32767,32767,32767,290,332,325,363,365]} 1. e4 {[%emt 0:00:00]} c5 {[%emt 0:00:00]} 2. Nf3 {[%emt 0:00:00]} Nc6 {[%emt 0:00:00]} 3. d4 {[%emt 0:00:08]} cxd4 {[%emt 0:00:00]} 4. Nxd4 {[%emt 0:00:05]} Qb6 {[%emt 0:00:00]} 5. Nb3 {[%emt 0:00:43]} Nf6 {[%emt 0:00:00]} 6. Nc3 {[%emt 0:01:15]} e6 {[%emt 0:00:00]} 7. Be3 {[%emt 0:00:35]} Qc7 {[%emt 0:00:07]} 8. Bd3 {[%emt 0:03:31]} Bb4 {[%emt 0:01:59] B33: Sicilian: Pelikan and Sveshnikov Variations} (8... a6 9. f4 d6 10. Qf3 Be7 11. g4 b5 12. g5 Nd7 13. O-O-O Nb4 14. Kb1 Bb7 15. Rhg1 O-O 16. Rg3 Nxd3 17. cxd3 f5 18. gxf6 Bxf6 19. Qg4 Rae8 20. Rc1 Qd8 21. Rh3 {0-1 (54) Yu,Y (2739)-Korobov,A (2687) Hengshui 2019}) 9. Bd2 {[%emt 0:01:19]} O-O {[%emt 0:06:46]} 10. a3 {[%emt 0:03:18]} Bxc3 $146 {[%emt 0:04:11]} ({Predecessor:} 10... Be7 11. f4 d6 12. Qf3 a5 13. a4 Nd7 14. Nb5 Qd8 15. Qh3 Nc5 16. Nxc5 dxc5 17. e5 {1-0 (43) Zlydneva,E (1664)-Tletseri,J Nebug 2013}) 11. Bxc3 {[%emt 0:00:09]} Ne5 {[%emt 0:00:02]} 12. Qe2 {[%emt 0:02:11]} d5 {[%emt 0:02:02]} 13. O-O {[%emt 0:09:33]} dxe4 {[%emt 0:04:58]} 14. Bxe4 {[%emt 0:00:21]} Ng6 {[%emt 0:00:19]} (14... Neg4 $11 {remains equal.} 15. g3 Nxe4 16. Qxe4 e5) 15. Bxg6 {[%emt 0:08:20]} hxg6 {[%emt 0:00:23]} 16. Be5 {[%emt 0:00:21]} Qc6 {[%emt 0:07:34]} 17. Rad1 {[%emt 0:04:08]} b6 {[%emt 0:03:23]} 18. Bxf6 {[%emt 0:01:53]} (18. Nd4 $14 Qe4 19. Qxe4 Nxe4 20. Rfe1) 18... gxf6 {[%emt 0:00:09]} 19. Nd4 {[%emt 0:00:05]} Qd5 {[%emt 0:05:07]} 20. c4 {[%emt 0:01:14]} Qe5 {[%emt 0:04:36]} 21. Qxe5 {[%emt 0:09:07]} fxe5 {[%emt 0:00:05]} 22. Nf3 {[%emt 0:00:06]} f6 {[%emt 0:01:35]} 23. Rd6 {[%emt 0:05:30]} Rf7 {[%emt 0:02:47]} 24. Rfd1 {[%emt 0:01:02]} Rc7 {[%emt 0:03:35]} 25. b3 {[%emt 0:03:01]} Kf7 {[%emt 0:02:00]} 26. Rd8 {[%emt 0:00:53]} e4 {[%emt 0:02:12]} 27. Ne1 {[%emt 0:00:42]} f5 {[%emt 0:00:39]} (27... Re7 $11) 28. f3 {[%emt 0:10:30]} Kf6 {[%emt 0:01:36]} 29. fxe4 {[%emt 0:02:21]} fxe4 {[%emt 0:00:04]} 30. Rf8+ {[%emt 0:01:33]} Rf7 {[%emt 0:00:31]} 31. Rxf7+ {[%emt 0:00:10]} Kxf7 {[%emt 0:00:04]} 32. Rd8 {[%emt 0:00:06]} Kf6 {[%emt 0:00:05]} 33. Kf2 {[%emt 0:00:49]} Bb7 {[%emt 0:00:43]} 34. Rxa8 {[%emt 0:00:06]} Bxa8 {[%emt 0:00:01]} 35. Ke3 {[%emt 0:00:08]} Ke5 {[%emt 0:00:05]} 36. Nc2 {[%emt 0:00:13]} a5 {[%emt 0:00:24]} 37. Nd4 {[%emt 0:01:02]} Kd6 {[%emt 0:00:44]} 38. h4 {[%emt 0:03:22]} Bb7 $18 {[%emt 0:00:16]} 39. g4 {[%emt 0:00:47]} Bc8 {[%emt 0:00:08]} 40. Kxe4 1-0